[Event "Early-Titled-Tuesday-Blitz-November-28-2023"]
[Site "Chess.com"]
[Date "2023.11.28"]
[Round "2"]
[White "Zurability"]
[Black "MasterKroket"]
[Result "1-0"]
[WhiteElo "2870"]
[BlackElo "2501"]
[TimeControl "180+1"]
[EndTime "8:17:56 PST"]
[Termination "Zurability won on time"]

1. Nf3 {[%clk 0:03:00.9]} 1... Nf6 {[%clk 0:02:58.6]} 2. c4 {[%clk 0:02:59.8]}
2... g6 {[%clk 0:02:58.2]} 3. Nc3 {[%clk 0:02:56.8]} 3... d5 {[%clk 0:02:56.9]}
4. cxd5 {[%clk 0:02:56.9]} 4... Nxd5 {[%clk 0:02:57.2]} 5. e4 {[%clk 0:02:57.8]}
5... Nxc3 {[%clk 0:02:57.2]} 6. dxc3 {[%clk 0:02:58.7]} 6... Qxd1+ {[%clk
0:02:54.8]} 7. Kxd1 {[%clk 0:02:59.6]} 7... Bg7 {[%clk 0:02:51.5]} 8. Bf4 {[%clk
0:02:58.5]} 8... c6 {[%clk 0:02:47.5]} 9. Nd2 {[%clk 0:02:56.7]} 9... O-O {[%clk
0:02:44]} 10. f3 {[%clk 0:02:55]} 10... e5 {[%clk 0:02:40]} 11. Be3 {[%clk
0:02:47.5]} 11... Be6 {[%clk 0:02:38.8]} 12. Bc4 {[%clk 0:02:44.4]} 12... Bxc4
{[%clk 0:02:38.2]} 13. Nxc4 {[%clk 0:02:45.2]} 13... Rd8+ {[%clk 0:02:38.5]} 14.
Kc2 {[%clk 0:02:45.1]} 14... Na6 {[%clk 0:02:32.8]} 15. Rhd1 {[%clk 0:02:41.3]}
15... f6 {[%clk 0:02:21.3]} 16. Na5 {[%clk 0:02:40.4]} 16... Bf8 {[%clk
0:01:50.1]} 17. Nxb7 {[%clk 0:02:35.1]} 17... Rdc8 {[%clk 0:01:46.7]} 18. Rd7
{[%clk 0:02:34.1]} 18... Nb8 {[%clk 0:01:40.7]} 19. Rd2 {[%clk 0:02:31.8]} 19...
Rc7 {[%clk 0:01:34.7]} 20. Na5 {[%clk 0:02:31.5]} 20... Nd7 {[%clk 0:01:32.8]}
21. Rad1 {[%clk 0:02:30]} 21... Nb6 {[%clk 0:01:33.1]} 22. Rd8 {[%clk
0:02:30.1]} 22... Rxd8 {[%clk 0:01:31.8]} 23. Rxd8 {[%clk 0:02:31]} 23... Kf7
{[%clk 0:01:32.3]} 24. b4 {[%clk 0:02:19.2]} 24... c5 {[%clk 0:01:19.1]} 25. b5
{[%clk 0:02:18.8]} 25... Be7 {[%clk 0:00:52.8]} 26. Rh8 {[%clk 0:02:11.4]} 26...
Kg7 {[%clk 0:00:51.5]} 27. Rb8 {[%clk 0:02:11.8]} 27... f5 {[%clk 0:00:48.7]}
28. Nc6 {[%clk 0:02:08.8]} 28... Bf8 {[%clk 0:00:41]} 29. Nxe5 {[%clk
0:01:57.7]} 29... fxe4 {[%clk 0:00:41.2]} 30. fxe4 {[%clk 0:01:58.4]} 30... Re7
{[%clk 0:00:41.3]} 31. Bxc5 {[%clk 0:01:51]} 31... Rxe5 {[%clk 0:00:39.8]} 32.
Bxf8+ {[%clk 0:01:47.7]} 32... Kf6 {[%clk 0:00:35.4]} 33. Bh6 {[%clk 0:01:34.9]}
33... Rxe4 {[%clk 0:00:34.5]} 34. Rb7 {[%clk 0:01:35.3]} 34... Re2+ {[%clk
0:00:33.3]} 35. Kb3 {[%clk 0:01:35.1]} 35... Rxg2 {[%clk 0:00:29.5]} 36. Rxa7
{[%clk 0:01:35.3]} 36... Rxh2 {[%clk 0:00:29.6]} 37. Be3 {[%clk 0:01:32.8]}
37... Nd5 {[%clk 0:00:29.3]} 38. Bd4+ {[%clk 0:01:33.1]} 38... Kf5 {[%clk
0:00:26.3]} 39. b6 {[%clk 0:01:32.2]} 39... Rh1 {[%clk 0:00:26.3]} 40. b7 {[%clk
0:01:28.2]} 40... Rb1+ {[%clk 0:00:23.7]} 41. Kc4 {[%clk 0:01:28.6]} 41... Ke4
{[%clk 0:00:16.3]} 42. a4 {[%clk 0:01:27.5]} 42... h5 {[%clk 0:00:15.3]} 43. a5
{[%clk 0:01:27.8]} 43... h4 {[%clk 0:00:15.7]} 44. a6 {[%clk 0:01:28.3]} 44...
h3 {[%clk 0:00:15.4]} 45. Ra8 {[%clk 0:01:28.9]} 45... h2 {[%clk 0:00:15]} 46.
Rh8 {[%clk 0:01:29.1]} 46... Nc7 {[%clk 0:00:02.8]} 47. Rxh2 {[%clk 0:01:17.4]}
47... Nxa6 {[%clk 0:00:03.1]} 48. Re2+ {[%clk 0:01:16.7]} 48... Kf5 {[%clk
0:00:03]} 49. Re7 {[%clk 0:01:17.6]} 49... g5 {[%clk 0:00:02.5]} 50. Kd5 {[%clk
0:01:12.4]} 50... g4 {[%clk 0:00:02.7]} 51. Rf7+ {[%clk 0:01:00.2]} 51... Kg5
{[%clk 0:00:02.9]} 52. Rg7+ {[%clk 0:01:00.4]} 52... Kh4 {[%clk 0:00:03.3]} 53.
Be5 {[%clk 0:00:55.6]} 53... Kh3 {[%clk 0:00:03.5]} 54. Rg6 {[%clk 0:00:42.8]}
1-0

[Event "Early-Titled-Tuesday-Blitz-November-28-2023"]
[Site "Chess.com"]
[Date "2023.11.28"]
[Round "2"]
[White "Nadeev_Sergey"]
[Black "anemih"]
[Result "1-0"]
[WhiteElo "2355"]
[BlackElo "2500"]
[TimeControl "180+1"]
[EndTime "8:17:56 PST"]
[Termination "Nadeev_Sergey won by resignation"]

1. e4 {[%clk 0:02:56.3]} 1... c5 {[%clk 0:03:00]} 2. Nf3 {[%clk 0:02:56.3]} 2...
g6 {[%clk 0:02:59.8]} 3. d4 {[%clk 0:02:56.3]} 3... cxd4 {[%clk 0:02:59.5]} 4.
Nxd4 {[%clk 0:02:57.2]} 4... Nc6 {[%clk 0:02:59.1]} 5. c4 {[%clk 0:02:56.8]}
5... Nf6 {[%clk 0:02:58]} 6. Nc3 {[%clk 0:02:56.5]} 6... Nxd4 {[%clk 0:02:57.2]}
7. Qxd4 {[%clk 0:02:56.1]} 7... d6 {[%clk 0:02:57.9]} 8. Bg5 {[%clk 0:02:55.7]}
8... Bg7 {[%clk 0:02:58.1]} 9. Qd2 {[%clk 0:02:55.5]} 9... O-O {[%clk 0:02:58]}
10. Be2 {[%clk 0:02:54.1]} 10... Be6 {[%clk 0:02:54.8]} 11. Rc1 {[%clk
0:02:52.8]} 11... Rc8 {[%clk 0:02:54.2]} 12. b3 {[%clk 0:02:52.8]} 12... a5
{[%clk 0:02:54.3]} 13. O-O {[%clk 0:02:52.5]} 13... Nd7 {[%clk 0:02:46.2]} 14.
Rfd1 {[%clk 0:02:49.4]} 14... Nc5 {[%clk 0:02:39.7]} 15. f3 {[%clk 0:02:45]}
15... Qb6 {[%clk 0:02:37.7]} 16. Kh1 {[%clk 0:02:42.2]} 16... a4 {[%clk
0:02:32.3]} 17. Bxe7 {[%clk 0:02:34.1]} 17... Rfe8 {[%clk 0:02:25.6]} 18. Bxd6
{[%clk 0:02:28.5]} 18... axb3 {[%clk 0:01:37.5]} 19. Bxc5 {[%clk 0:02:26]} 19...
Qxc5 {[%clk 0:01:37.2]} 20. axb3 {[%clk 0:02:25.7]} 20... Qb4 {[%clk 0:01:37.2]}
21. Qc2 {[%clk 0:02:19.5]} 21... Red8 {[%clk 0:01:14]} 22. Rxd8+ {[%clk
0:02:14.6]} 22... Rxd8 {[%clk 0:01:14.1]} 23. Nd5 {[%clk 0:02:15]} 23... Qc5
{[%clk 0:01:01.4]} 24. b4 {[%clk 0:02:13]} 24... Qa7 {[%clk 0:00:56.7]} 25. Rd1
{[%clk 0:02:07.3]} 25... Kh8 {[%clk 0:00:55.5]} 26. c5 {[%clk 0:02:04.4]} 26...
f5 {[%clk 0:00:47.4]} 27. b5 {[%clk 0:01:39.6]} 27... fxe4 {[%clk 0:00:42.5]}
28. fxe4 {[%clk 0:01:40.5]} 28... Rc8 {[%clk 0:00:28.7]} 29. b6 {[%clk 0:01:22]}
29... Qa3 {[%clk 0:00:24.3]} 30. Nc7 {[%clk 0:01:15]} 30... Bb3 {[%clk
0:00:19.6]} 31. Qd3 {[%clk 0:01:14.2]} 31... Qb4 {[%clk 0:00:12.8]} 32. Rb1
{[%clk 0:01:11]} 32... Qxc5 {[%clk 0:00:12.6]} 33. Qxb3 {[%clk 0:01:09.9]} 33...
Be5 {[%clk 0:00:09.1]} 34. Qd5 {[%clk 0:01:02.3]} 34... Qc3 {[%clk 0:00:08.2]}
35. Rf1 {[%clk 0:00:49.6]} 35... Bg7 {[%clk 0:00:05.2]} 36. Bc4 {[%clk
0:00:46.6]} 36... Qe3 {[%clk 0:00:02.3]} 37. Qe6 {[%clk 0:00:42.8]} 37... Rd8
{[%clk 0:00:01.8]} 38. Bd5 {[%clk 0:00:40.6]} 38... Qg5 {[%clk 0:00:01.5]} 39.
Qf7 {[%clk 0:00:36.4]} 39... Be5 {[%clk 0:00:01.5]} 40. g3 {[%clk 0:00:35.1]}
40... Qh6 {[%clk 0:00:01.6]} 41. Kg2 {[%clk 0:00:33.9]} 41... Bg7 {[%clk
0:00:01.6]} 42. Ne6 {[%clk 0:00:31.7]} 42... Qd2+ {[%clk 0:00:01.6]} 43. Rf2
{[%clk 0:00:31.1]} 43... Be5 {[%clk 0:00:02.5]} 44. Rxd2 {[%clk 0:00:29.6]} 1-0

[Event "Early-Titled-Tuesday-Blitz-November-28-2023"]
[Site "Chess.com"]
[Date "2023.11.28"]
[Round "2"]
[White "Thormento16"]
[Black "carokannlover213"]
[Result "0-1"]
[WhiteElo "2350"]
[BlackElo "2692"]
[TimeControl "180+1"]
[EndTime "8:17:59 PST"]
[Termination "carokannlover213 won by resignation"]

1. e4 {[%clk 0:03:00.9]} 1... e5 {[%clk 0:02:52.5]} 2. Nf3 {[%clk 0:03:00.3]}
2... Nf6 {[%clk 0:02:53.1]} 3. Nc3 {[%clk 0:02:59.6]} 3... Nc6 {[%clk 0:02:52]}
4. d4 {[%clk 0:03:00.1]} 4... exd4 {[%clk 0:02:52.2]} 5. Nxd4 {[%clk 0:03:01]}
5... Nxe4 {[%clk 0:02:52.9]} 6. Nxe4 {[%clk 0:03:00.5]} 6... Qe7 {[%clk
0:02:53.5]} 7. Bd3 {[%clk 0:02:58.8]} 7... Nxd4 {[%clk 0:02:53]} 8. O-O {[%clk
0:02:59.1]} 8... d5 {[%clk 0:02:47.1]} 9. Ng5 {[%clk 0:02:37.5]} 9... h6 {[%clk
0:02:45.4]} 10. Re1 {[%clk 0:02:30.9]} 10... Ne6 {[%clk 0:02:45.1]} 11. Nf3
{[%clk 0:02:27.7]} 11... Qd8 {[%clk 0:02:41.3]} 12. Nd4 {[%clk 0:02:24.2]} 12...
Be7 {[%clk 0:02:36.5]} 13. Nf5 {[%clk 0:02:23.8]} 13... Bf6 {[%clk 0:02:32.2]}
14. Qf3 {[%clk 0:02:14.2]} 14... O-O {[%clk 0:02:30.3]} 15. Bxh6 {[%clk
0:02:13.8]} 15... Ng5 {[%clk 0:01:14.2]} 16. Bxg5 {[%clk 0:01:52.6]} 16... Bxg5
{[%clk 0:01:14.1]} 17. Rad1 {[%clk 0:01:53.3]} 17... Bxf5 {[%clk 0:01:00.1]} 18.
Qxf5 {[%clk 0:01:45.2]} 18... g6 {[%clk 0:01:00.3]} 19. Qg4 {[%clk 0:01:45.8]}
19... c6 {[%clk 0:00:57.3]} 20. g3 {[%clk 0:01:45.2]} 20... Qf6 {[%clk
0:00:55.7]} 21. h4 {[%clk 0:01:43]} 21... Bh6 {[%clk 0:00:55.4]} 22. h5 {[%clk
0:01:42.3]} 22... g5 {[%clk 0:00:37.2]} 23. Re3 {[%clk 0:01:41.9]} 23... Rae8
{[%clk 0:00:34.4]} 24. Rde1 {[%clk 0:01:41.6]} 24... Rxe3 {[%clk 0:00:34.9]} 25.
Rxe3 {[%clk 0:01:42.5]} 25... Qxb2 {[%clk 0:00:33.5]} 26. Qf5 {[%clk 0:01:36.7]}
26... Qa1+ {[%clk 0:00:33]} 27. Kg2 {[%clk 0:01:36.3]} 27... Qg7 {[%clk
0:00:33.6]} 28. Re7 {[%clk 0:01:36.6]} 28... Rb8 {[%clk 0:00:29.7]} 29. Rxb7
{[%clk 0:01:34.7]} 29... Rxb7 {[%clk 0:00:28.5]} 30. Qc8+ {[%clk 0:01:35.3]}
30... Qf8 {[%clk 0:00:29]} 31. Qxb7 {[%clk 0:01:35.9]} 31... Qc5 {[%clk
0:00:26.8]} 32. Qc8+ {[%clk 0:01:34.2]} 32... Kg7 {[%clk 0:00:22.8]} 33. Qf5
{[%clk 0:01:34.6]} 33... Qf8 {[%clk 0:00:22.8]} 34. Qh7+ {[%clk 0:01:34]} 34...
Kf6 {[%clk 0:00:22.9]} 35. a4 {[%clk 0:01:28.7]} 35... a5 {[%clk 0:00:20.2]} 36.
c4 {[%clk 0:01:21.2]} 36... Ke5 {[%clk 0:00:20]} 37. c5 {[%clk 0:01:18.8]} 37...
Kd4 {[%clk 0:00:19]} 38. Be2 {[%clk 0:00:37.4]} 38... Kxc5 {[%clk 0:00:18.5]}
39. Qc2+ {[%clk 0:00:37]} 39... Kb6 {[%clk 0:00:19.2]} 40. Qb2+ {[%clk
0:00:34.9]} 40... Qb4 {[%clk 0:00:18.3]} 41. Qf6 {[%clk 0:00:30.5]} 41... Qe4+
{[%clk 0:00:11.8]} 42. Bf3 {[%clk 0:00:30.7]} 42... Qe6 {[%clk 0:00:12.7]} 43.
Qd8+ {[%clk 0:00:31.2]} 43... Kc5 {[%clk 0:00:13.2]} 44. Qxa5+ {[%clk
0:00:31.1]} 44... Kd4 {[%clk 0:00:12.5]} 45. Qd2+ {[%clk 0:00:31.2]} 45... Kc5
{[%clk 0:00:11.4]} 46. a5 {[%clk 0:00:29.7]} 46... g4 {[%clk 0:00:09.7]} 47. Be2
{[%clk 0:00:23.4]} 47... Bxd2 {[%clk 0:00:08.9]} 0-1

[Event "Early-Titled-Tuesday-Blitz-November-28-2023"]
[Site "Chess.com"]
[Date "2023.11.28"]
[Round "2"]
[White "guillembaches"]
[Black "TedBelanoff"]
[Result "1-0"]
[WhiteElo "2527"]
[BlackElo "2328"]
[TimeControl "180+1"]
[EndTime "8:17:59 PST"]
[Termination "guillembaches won by resignation"]

1. d4 {[%clk 0:03:00.9]} 1... b5 {[%clk 0:02:57.5]} 2. Nf3 {[%clk 0:03:01.2]}
2... Bb7 {[%clk 0:02:56.7]} 3. Bg5 {[%clk 0:03:01.3]} 3... Bxf3 {[%clk
0:02:54.2]} 4. exf3 {[%clk 0:02:59.7]} 4... Nf6 {[%clk 0:02:54.4]} 5. Bxb5
{[%clk 0:02:55.2]} 5... c6 {[%clk 0:02:50.9]} 6. Be2 {[%clk 0:02:48.9]} 6... Qb6
{[%clk 0:02:46]} 7. b3 {[%clk 0:02:43.1]} 7... g6 {[%clk 0:02:42]} 8. O-O {[%clk
0:02:36.5]} 8... Bg7 {[%clk 0:02:36.6]} 9. c4 {[%clk 0:02:35.7]} 9... O-O {[%clk
0:02:35]} 10. Nc3 {[%clk 0:02:35.7]} 10... Re8 {[%clk 0:02:30.9]} 11. Qd2 {[%clk
0:02:34.3]} 11... d6 {[%clk 0:02:28.6]} 12. Rfe1 {[%clk 0:02:31.4]} 12... Nfd7
{[%clk 0:02:27.3]} 13. Rad1 {[%clk 0:02:30]} 13... c5 {[%clk 0:02:23.8]} 14. Be3
{[%clk 0:02:20.8]} 14... Qb7 {[%clk 0:02:19.7]} 15. Bf1 {[%clk 0:02:13.5]} 15...
Nc6 {[%clk 0:02:15.9]} 16. d5 {[%clk 0:02:11.1]} 16... Nd4 {[%clk 0:02:14.4]}
17. Ne2 {[%clk 0:02:10.9]} 17... Nf5 {[%clk 0:02:12]} 18. Ng3 {[%clk 0:02:00.2]}
18... Nh4 {[%clk 0:02:08]} 19. Bh6 {[%clk 0:01:57.6]} 19... Bf6 {[%clk
0:02:03.9]} 20. Bg5 {[%clk 0:01:55.9]} 20... Qc8 {[%clk 0:01:56.6]} 21. Ne4
{[%clk 0:01:46.3]} 21... Bxg5 {[%clk 0:01:48.6]} 22. Qxg5 {[%clk 0:01:45.6]}
22... Nf5 {[%clk 0:01:47.8]} 23. Ng3 {[%clk 0:01:41.1]} 23... Ng7 {[%clk
0:01:44.3]} 24. Rxe7 {[%clk 0:01:33.5]} 24... Rxe7 {[%clk 0:01:34]} 25. Qxe7
{[%clk 0:01:34.4]} 25... Qc7 {[%clk 0:01:17.4]} 26. Ne4 {[%clk 0:01:30.5]} 26...
Nf5 {[%clk 0:01:09.5]} 27. Nf6+ {[%clk 0:01:20.8]} 27... Kg7 {[%clk 0:01:06.8]}
28. Qxd7 {[%clk 0:01:15.8]} 28... Qxd7 {[%clk 0:01:05.4]} 29. Nxd7 {[%clk
0:01:15.7]} 29... Rd8 {[%clk 0:01:05.4]} 30. Nxc5 {[%clk 0:01:11.4]} 30... dxc5
{[%clk 0:01:04.4]} 31. Re1 {[%clk 0:01:09.7]} 31... Kf6 {[%clk 0:01:01.4]} 32.
Bd3 {[%clk 0:01:06.2]} 32... Nd4 {[%clk 0:00:58]} 33. Kf1 {[%clk 0:01:03.8]}
33... Rd6 {[%clk 0:00:44.9]} 34. Rd1 {[%clk 0:00:57.8]} 34... Ra6 {[%clk
0:00:43.2]} 35. Rd2 {[%clk 0:00:56]} 35... Rb6 {[%clk 0:00:38.4]} 36. Ke1 {[%clk
0:00:53]} 36... a5 {[%clk 0:00:38.3]} 37. Bc2 {[%clk 0:00:45.6]} 37... a4 {[%clk
0:00:37.7]} 38. Bd1 {[%clk 0:00:44.6]} 38... axb3 {[%clk 0:00:37]} 39. axb3
{[%clk 0:00:45.2]} 39... Ra6 {[%clk 0:00:37]} 40. b4 {[%clk 0:00:35.8]} 40...
Ke5 {[%clk 0:00:20.1]} 41. bxc5 {[%clk 0:00:33.9]} 41... Ra5 {[%clk 0:00:20.4]}
42. f4+ {[%clk 0:00:30]} 42... Ke4 {[%clk 0:00:19.4]} 43. Bf3+ {[%clk
0:00:28.2]} 43... Nxf3+ {[%clk 0:00:16.7]} 44. gxf3+ {[%clk 0:00:28.5]} 44...
Kxf3 {[%clk 0:00:15.3]} 45. d6 {[%clk 0:00:27.9]} 45... Ra1+ {[%clk 0:00:11]}
46. Rd1 {[%clk 0:00:28.2]} 46... Ra2 {[%clk 0:00:11.3]} 47. d7 {[%clk
0:00:25.5]} 47... Re2+ {[%clk 0:00:10.7]} 48. Kf1 {[%clk 0:00:25.9]} 48... Rxf2+
{[%clk 0:00:11.4]} 49. Kg1 {[%clk 0:00:26.3]} 49... Rg2+ {[%clk 0:00:12.1]} 50.
Kh1 {[%clk 0:00:26.7]} 50... Rd2 {[%clk 0:00:13]} 51. Rxd2 {[%clk 0:00:25.8]}
1-0

[Event "Early-Titled-Tuesday-Blitz-November-28-2023"]
[Site "Chess.com"]
[Date "2023.11.28"]
[Round "2"]
[White "DumbKing75"]
[Black "Grischuk"]
[Result "0-1"]
[WhiteElo "2641"]
[BlackElo "3057"]
[TimeControl "180+1"]
[EndTime "8:18:00 PST"]
[Termination "Grischuk won on time"]

1. e4 {[%clk 0:03:00.9]} 1... e5 {[%clk 0:02:59.4]} 2. Nf3 {[%clk 0:03:01.4]}
2... Nc6 {[%clk 0:02:59.8]} 3. Bb5 {[%clk 0:03:02.1]} 3... a6 {[%clk 0:02:59]}
4. Bxc6 {[%clk 0:03:02.5]} 4... dxc6 {[%clk 0:02:58.9]} 5. O-O {[%clk
0:03:03.1]} 5... Qf6 {[%clk 0:02:57.1]} 6. d4 {[%clk 0:03:03]} 6... exd4 {[%clk
0:02:57.6]} 7. Bg5 {[%clk 0:03:03.5]} 7... Qd6 {[%clk 0:02:57.8]} 8. Nxd4 {[%clk
0:03:04.2]} 8... Be7 {[%clk 0:02:52.4]} 9. Be3 {[%clk 0:03:04.5]} 9... Bd7
{[%clk 0:02:46]} 10. Nc3 {[%clk 0:03:02.2]} 10... O-O-O {[%clk 0:02:45.9]} 11.
Qe2 {[%clk 0:02:59.9]} 11... h5 {[%clk 0:02:37.6]} 12. Rad1 {[%clk 0:02:38.1]}
12... Qg6 {[%clk 0:02:37.5]} 13. f4 {[%clk 0:02:32]} 13... Bg4 {[%clk 0:02:17]}
14. Nf3 {[%clk 0:02:31.6]} 14... f5 {[%clk 0:02:12]} 15. Rxd8+ {[%clk
0:02:19.6]} 15... Bxd8 {[%clk 0:02:12.9]} 16. Ne5 {[%clk 0:01:42.9]} 16... Bxe2
{[%clk 0:02:01.2]} 17. Nxg6 {[%clk 0:01:43.2]} 17... Bxf1 {[%clk 0:02:02.1]} 18.
Nxh8 {[%clk 0:01:43.7]} 18... Bc4 {[%clk 0:02:02.8]} 19. exf5 {[%clk 0:01:37.9]}
19... Nh6 {[%clk 0:02:02.9]} 20. Bd4 {[%clk 0:01:28.4]} 20... Nxf5 {[%clk
0:02:02.8]} 21. Be5 {[%clk 0:01:29]} 21... g5 {[%clk 0:02:00.3]} 22. b3 {[%clk
0:01:03]} 22... Bg8 {[%clk 0:01:59]} 23. Ne2 {[%clk 0:00:46.4]} 23... c5 {[%clk
0:01:35.6]} 24. fxg5 {[%clk 0:00:38.9]} 24... Bxg5 {[%clk 0:01:35.2]} 25. Nf4
{[%clk 0:00:39.2]} 25... h4 {[%clk 0:01:27.9]} 26. Kf2 {[%clk 0:00:26.2]} 26...
c4 {[%clk 0:01:26.4]} 27. Nhg6 {[%clk 0:00:21.6]} 27... b5 {[%clk 0:01:09.6]}
28. g4 {[%clk 0:00:15.6]} 28... hxg3+ {[%clk 0:01:09]} 29. hxg3 {[%clk
0:00:16.5]} 29... c5 {[%clk 0:01:02.5]} 30. g4 {[%clk 0:00:16.1]} 30... Nd4
{[%clk 0:00:53.1]} 31. c3 {[%clk 0:00:03.8]} 31... cxb3 {[%clk 0:00:48.9]} 32.
axb3 {[%clk 0:00:04.2]} 32... Nxb3 {[%clk 0:00:48.1]} 33. Nh3 {[%clk 0:00:04.5]}
33... Bd8 {[%clk 0:00:45.7]} 34. g5 {[%clk 0:00:04.9]} 34... Kd7 {[%clk
0:00:37.3]} 35. Bf6 {[%clk 0:00:03.3]} 35... Bxf6 {[%clk 0:00:32]} 36. gxf6
{[%clk 0:00:04.2]} 36... Ke6 {[%clk 0:00:32.9]} 37. Ne7 {[%clk 0:00:04.7]} 37...
Bf7 {[%clk 0:00:32.7]} 38. Ng5+ {[%clk 0:00:02]} 38... Kxf6 {[%clk 0:00:33.1]}
39. Nxf7 {[%clk 0:00:02.5]} 39... Kxe7 {[%clk 0:00:32.6]} 40. Ne5 {[%clk
0:00:02.3]} 40... Kd6 {[%clk 0:00:32.6]} 41. Nf3 {[%clk 0:00:02.2]} 41... Kd5
{[%clk 0:00:32.1]} 42. Ke3 {[%clk 0:00:02.2]} 42... Kc4 {[%clk 0:00:32.5]} 0-1

[Event "Early-Titled-Tuesday-Blitz-November-28-2023"]
[Site "Chess.com"]
[Date "2023.11.28"]
[Round "2"]
[White "Gyulamiryan-koryun"]
[Black "Kostukov_Alex"]
[Result "1-0"]
[WhiteElo "1915"]
[BlackElo "2403"]
[TimeControl "180+1"]
[EndTime "8:18:01 PST"]
[Termination "Gyulamiryan-koryun won on time"]

1. e4 {[%clk 0:02:58.1]} 1... c5 {[%clk 0:02:47.2]} 2. Nf3 {[%clk 0:02:56.8]}
2... g6 {[%clk 0:02:47]} 3. c3 {[%clk 0:02:53.7]} 3... Bg7 {[%clk 0:02:46.2]} 4.
d4 {[%clk 0:02:52.7]} 4... cxd4 {[%clk 0:02:46.4]} 5. cxd4 {[%clk 0:02:52.8]}
5... d5 {[%clk 0:02:47.1]} 6. e5 {[%clk 0:02:52.3]} 6... Nc6 {[%clk 0:02:46.2]}
7. Nc3 {[%clk 0:02:47.1]} 7... Bg4 {[%clk 0:02:44.6]} 8. Bb5 {[%clk 0:02:45.6]}
8... Nh6 {[%clk 0:02:43.4]} 9. O-O {[%clk 0:02:43.4]} 9... Nf5 {[%clk
0:02:41.3]} 10. Qa4 {[%clk 0:02:25.1]} 10... O-O {[%clk 0:02:35.7]} 11. Bxc6
{[%clk 0:02:21.8]} 11... bxc6 {[%clk 0:02:27.9]} 12. Be3 {[%clk 0:01:54.6]}
12... Bxf3 {[%clk 0:02:24.8]} 13. gxf3 {[%clk 0:01:54]} 13... Qb6 {[%clk
0:02:08.2]} 14. Qb3 {[%clk 0:01:42.8]} 14... Qxb3 {[%clk 0:00:52.9]} 15. axb3
{[%clk 0:01:41.5]} 15... Rfb8 {[%clk 0:00:53.3]} 16. Ra3 {[%clk 0:01:40.7]}
16... Rb4 {[%clk 0:00:47.5]} 17. Rd1 {[%clk 0:01:37.4]} 17... e6 {[%clk
0:00:37.6]} 18. Kf1 {[%clk 0:01:36.8]} 18... f6 {[%clk 0:00:26.9]} 19. f4 {[%clk
0:01:28.8]} 19... Bf8 {[%clk 0:00:24.9]} 20. Rda1 {[%clk 0:01:24.2]} 20... fxe5
{[%clk 0:00:17.7]} 21. fxe5 {[%clk 0:01:21.3]} 21... Nxd4 {[%clk 0:00:12.3]} 22.
Bxd4 {[%clk 0:01:19]} 22... Rxd4 {[%clk 0:00:11.8]} 23. Rxa7 {[%clk 0:01:19.1]}
23... Rxa7 {[%clk 0:00:12.1]} 24. Rxa7 {[%clk 0:01:18.6]} 24... Rb4 {[%clk
0:00:12.2]} 25. Ne2 {[%clk 0:01:06.9]} 25... Bc5 {[%clk 0:00:08.8]} 26. Rc7
{[%clk 0:01:04.4]} 26... Rxb3 {[%clk 0:00:07.6]} 27. Rxc6 {[%clk 0:01:03]} 27...
Bb6 {[%clk 0:00:07]} 28. f4 {[%clk 0:00:53.6]} 28... Kf7 {[%clk 0:00:05.1]} 29.
h4 {[%clk 0:00:43.7]} 29... Rxb2 {[%clk 0:00:05.1]} 30. Nc3 {[%clk 0:00:40.6]}
30... Rc2 {[%clk 0:00:03.6]} 31. Rxb6 {[%clk 0:00:39]} 31... Rxc3 {[%clk
0:00:03.7]} 32. Rb7+ {[%clk 0:00:37.4]} 32... Kg8 {[%clk 0:00:02.8]} 33. Re7
{[%clk 0:00:37.1]} 33... Rc6 {[%clk 0:00:02.7]} 34. Ke2 {[%clk 0:00:36.1]} 34...
h6 {[%clk 0:00:02.7]} 35. Kd3 {[%clk 0:00:35.1]} 35... Kf8 {[%clk 0:00:02.7]}
36. Rh7 {[%clk 0:00:34.2]} 36... h5 {[%clk 0:00:03]} 37. Ra7 {[%clk 0:00:28.8]}
37... Rc4 {[%clk 0:00:02.8]} 38. Ke3 {[%clk 0:00:28.2]} 38... Re4+ {[%clk
0:00:02.4]} 39. Kf3 {[%clk 0:00:27.9]} 39... Rc4 {[%clk 0:00:02.3]} 40. Rb7
{[%clk 0:00:25.7]} 40... Rc3+ {[%clk 0:00:01.5]} 41. Kg2 {[%clk 0:00:24.1]}
41... Rc6 {[%clk 0:00:02.4]} 42. Rd7 {[%clk 0:00:23.5]} 42... Kg8 {[%clk
0:00:01.2]} 43. Ra7 {[%clk 0:00:23.1]} 1-0

[Event "Early-Titled-Tuesday-Blitz-November-28-2023"]
[Site "Chess.com"]
[Date "2023.11.28"]
[Round "2"]
[White "erugee"]
[Black "TomLiu777"]
[Result "0-1"]
[WhiteElo "2329"]
[BlackElo "2527"]
[TimeControl "180+1"]
[EndTime "8:18:02 PST"]
[Termination "TomLiu777 won on time"]

1. e4 {[%clk 0:03:00.9]} 1... e6 {[%clk 0:02:59.6]} 2. d3 {[%clk 0:02:59.6]}
2... d5 {[%clk 0:03:00.2]} 3. Nd2 {[%clk 0:02:59.9]} 3... Nf6 {[%clk 0:03:00.3]}
4. Ngf3 {[%clk 0:03:00.4]} 4... Be7 {[%clk 0:02:59.9]} 5. g3 {[%clk 0:03:00.6]}
5... c5 {[%clk 0:02:59.5]} 6. Bg2 {[%clk 0:03:01]} 6... Nc6 {[%clk 0:03:00]} 7.
O-O {[%clk 0:03:01.3]} 7... O-O {[%clk 0:03:00.5]} 8. e5 {[%clk 0:03:01.7]} 8...
Nd7 {[%clk 0:03:00.2]} 9. Re1 {[%clk 0:03:02.3]} 9... b5 {[%clk 0:03:00.7]} 10.
Nf1 {[%clk 0:03:02.2]} 10... Bb7 {[%clk 0:03:00.6]} 11. h4 {[%clk 0:03:02.7]}
11... Qb6 {[%clk 0:03:00.5]} 12. Bf4 {[%clk 0:03:02.5]} 12... Rfc8 {[%clk
0:03:00]} 13. N1h2 {[%clk 0:02:58.6]} 13... Nd4 {[%clk 0:02:57.9]} 14. Nxd4
{[%clk 0:02:58]} 14... cxd4 {[%clk 0:02:58.8]} 15. Nf3 {[%clk 0:02:57.7]} 15...
Nc5 {[%clk 0:02:54.1]} 16. Re2 {[%clk 0:02:36.1]} 16... Na4 {[%clk 0:02:51.6]}
17. Rb1 {[%clk 0:02:32.7]} 17... b4 {[%clk 0:02:42.3]} 18. Rd2 {[%clk 0:02:12]}
18... a5 {[%clk 0:02:37.8]} 19. Ng5 {[%clk 0:02:10.8]} 19... h6 {[%clk
0:02:32.8]} 20. Nh3 {[%clk 0:01:51.8]} 20... Qd8 {[%clk 0:02:28.1]} 21. Qh5
{[%clk 0:01:46.4]} 21... Nb6 {[%clk 0:02:15]} 22. Kh2 {[%clk 0:01:39.7]} 22...
a4 {[%clk 0:02:13.9]} 23. Ng1 {[%clk 0:01:39.7]} 23... b3 {[%clk 0:02:12.8]} 24.
cxb3 {[%clk 0:01:37.3]} 24... axb3 {[%clk 0:02:13.7]} 25. axb3 {[%clk
0:01:34.5]} 25... Nd7 {[%clk 0:02:10.1]} 26. Nf3 {[%clk 0:01:32.8]} 26... Nc5
{[%clk 0:02:10]} 27. Nxd4 {[%clk 0:01:31.2]} 27... Ba6 {[%clk 0:02:06]} 28. Rbd1
{[%clk 0:01:29.7]} 28... Rab8 {[%clk 0:02:04.2]} 29. Bh3 {[%clk 0:01:22.9]}
29... Rb6 {[%clk 0:01:51.6]} 30. g4 {[%clk 0:00:49.2]} 30... Nxb3 {[%clk
0:01:36]} 31. Nxb3 {[%clk 0:00:47.5]} 31... Rxb3 {[%clk 0:01:36.9]} 32. g5
{[%clk 0:00:45.8]} 32... g6 {[%clk 0:01:29.7]} 33. Qf3 {[%clk 0:00:17.6]} 33...
h5 {[%clk 0:01:07.2]} 34. Be3 {[%clk 0:00:17.4]} 34... d4 {[%clk 0:00:59.4]} 35.
Bf4 {[%clk 0:00:17.3]} 35... Rcb8 {[%clk 0:00:54.9]} 36. Qg3 {[%clk 0:00:15.9]}
36... Rxb2 {[%clk 0:00:49.5]} 37. Rxb2 {[%clk 0:00:15.6]} 37... Rxb2 {[%clk
0:00:50.4]} 38. Ra1 {[%clk 0:00:15.2]} 38... Qb6 {[%clk 0:00:45.7]} 39. Bg2
{[%clk 0:00:14.7]} 39... Kg7 {[%clk 0:00:42.1]} 40. Be4 {[%clk 0:00:09.5]} 40...
Bb7 {[%clk 0:00:35.8]} 41. Bxb7 {[%clk 0:00:08.4]} 41... Qxb7 {[%clk 0:00:36.7]}
42. Rc1 {[%clk 0:00:05.4]} 42... Re2 {[%clk 0:00:25]} 43. Qg2 {[%clk 0:00:03.5]}
43... Qb2 {[%clk 0:00:22.1]} 0-1